fUSD/lending_fUSD_20250602
["ID","MTS","AMOUNT","RATE_DAILY","PERIOD"]
[363779086,1748868659445,-2355.75,0.00019589,2]
[363779087,1748868659455,-420.0,0.00019589,2]
[363779088,1748868659464,-420.0,0.00019589,2]
[363779089,1748868659474,-420.0,0.00019589,2]
[363779090,1748868659484,-1326.49,0.00019589,2]
[363779091,1748868659493,-420.0,0.00019589,2]
[363779092,1748868659503,-420.0,0.00019589,2]
[363779093,1748868659513,-420.0,0.00019589,2]
[363779094,1748868659522,-420.0,0.00019589,2]
[363779095,1748868659533,-420.0,0.00019589,2]
[363779096,1748868659542,-298.0,0.00019589,2]
[363779097,1748868659551,-1329.42,0.00019589,2]
[363779098,1748868659562,-420.0,0.00019589,2]
[363779099,1748868659571,-420.0,0.00019589,2]
[363779100,1748868659581,-420.0,0.00019589,2]
[363779101,1748868659591,-913.78,0.00019589,2]
[363779102,1748868659601,-420.0,0.00019589,2]
[363779103,1748868659611,-420.0,0.00019589,2]
[363779104,1748868659621,-2903.51,0.00019589,2]
[363779105,1748868659631,-534.17,0.00019589,2]
[363779106,1748868659642,-675.23,0.00019589,2]
[363779107,1748868659652,-420.0,0.00019589,2]
[363779108,1748868659661,-420.0,0.00019589,2]
[363779109,1748868659670,-420.0,0.00019589,2]
[363779110,1748868659681,-1161.16,0.00019589,2]
[363779111,1748868659690,-693.48,0.00019589,2]
[363779112,1748868659700,-3113.02,0.00019589,2]
[363779113,1748868659710,-428.82,0.00019589,2]
[363779114,1748868659719,-420.0,0.00019589,2]
[363779115,1748868659728,-420.0,0.00019589,2]
[363779116,1748868659738,-581.6,0.00019589,2]
[363779117,1748868659748,-420.0,0.00019589,2]
[363779118,1748868659758,-448.42,0.00019589,2]
[363779119,1748868659769,-972.65,0.00019589,2]
[363779120,1748868659778,-593.57,0.00019589,2]
[363779121,1748868659789,-420.0,0.00019589,2]
[363779122,1748868659799,-420.0,0.00019589,2]
[363779123,1748868659809,-614.98,0.00019589,2]
[363779124,1748868659822,-420.0,0.00019589,2]
[363779125,1748868659832,-420.0,0.00019589,2]
[363779126,1748868659842,-420.0,0.00019589,2]
[363779127,1748868659852,-420.0,0.00019589,2]
[363779128,1748868659863,-659.87,0.00019589,2]
[363779129,1748868659872,-420.0,0.00019589,2]
[363779130,1748868659883,-420.0,0.00019589,2]
[363779131,1748868659893,-1440.83,0.00019589,2]
[363779132,1748868659906,-1078.33,0.00019589,2]
[363779133,1748868659916,-1468.982498,0.00019599,2]
[363779134,1748868659926,-3000.0,0.000196,7]
[363779135,1748868659936,-500.0,0.00019616,2]
[363779136,1748868659945,-500.0,0.00019616,2]
[363779137,1748868659955,-500.0,0.00019616,2]
[363779138,1748868659965,-500.0,0.00019616,2]
[363779139,1748868659975,-500.0,0.00019616,2]
[363779140,1748868659985,-2110.0,0.00019616,2]
[363779141,1748868659996,-500.0,0.00019616,2]
[363779142,1748868660006,-500.0,0.00019616,2]
[363779143,1748868660015,-2255.10096463,0.00019626,2]
[363779144,1748868660025,-150.0,0.0001963,2]
[363779145,1748868660035,-230.0,0.00019633,2]
[363779146,1748868660045,-500.0,0.00019644,2]
[363779147,1748868660056,-500.0,0.00019644,2]
[363779148,1748868660066,-500.0,0.00019644,2]
[363779149,1748868660077,-647.66991049,0.00019644,2]
[363779150,1748868660086,-500.0,0.00019644,2]
[363779151,1748868660097,-2110.0,0.00019644,2]
[363779152,1748868660106,-806.93,0.00019658,2]
[363779153,1748868660116,-805.74,0.00019663,2]
[363779154,1748868660126,-500.0,0.00019671,2]
[363779155,1748868660137,-500.0,0.00019671,2]
[363779156,1748868660148,-472.00319151,0.00019671,2]
[363779157,1748868660158,-500.0,0.00019671,2]
[363779158,1748868660168,-2110.0,0.00019671,2]
[363779159,1748868660179,-500.0,0.00019699,2]
[363779160,1748868660188,-500.0,0.00019699,2]
[363779161,1748868660199,-492.53660825,0.00019699,2]
[363779162,1748868660209,-2110.0,0.00019699,2]
[363779163,1748868660220,-1000.0,0.000197,2]
[363779164,1748868660230,-3800.0,0.000197,7]
[363779165,1748868660240,-350.19,0.000197,2]
[363779166,1748868660251,-192.77793536,0.00019716,2]
[363779167,1748868660261,-2255.10096463,0.00019717,2]
[363779168,1748868660270,-1000.0,0.00019721,2]
[363779169,1748868660281,-735.9059719,0.00019721,2]
[363779170,1748868660291,-1000.0,0.00019721,2]
[363779171,1748868660300,-501.89823162,0.00019721,2]
[363779172,1748868660310,-1000.0,0.00019721,2]
[363779173,1748868660319,-590.94,0.00019725,2]
[363779174,1748868660329,-500.0,0.00019726,2]
[363779175,1748868660339,-500.0,0.00019726,2]
[363779176,1748868660348,-2110.0,0.00019726,2]
[363779177,1748868660358,-420.0,0.00019726,2]
[363779178,1748868660367,-420.0,0.00019726,2]
[363779179,1748868660376,-1610.521803,0.00019726,2]
[363779180,1748868660385,-1784.984478,0.00019726,2]
[363779181,1748868660394,-151.877351,0.00019726,2]
[363779182,1748868660404,-183.957081,0.00019726,2]
[363779183,1748868660413,-420.0,0.00019726,2]
[363779184,1748868660422,-420.0,0.00019726,2]
[363779185,1748868660431,-420.0,0.00019726,2]
[363779186,1748868660441,-420.0,0.00019726,2]
[363779187,1748868660451,-420.0,0.00019726,2]
[363779188,1748868660461,-420.0,0.00019726,2]
[363779189,1748868660470,-420.0,0.00019726,2]
[363779190,1748868660480,-420.0,0.00019726,2]
[363779191,1748868660489,-507.96,0.00019726,2]
[363779192,1748868660500,-420.0,0.00019726,2]
[363779193,1748868660510,-420.0,0.00019726,2]
[363779194,1748868660519,-420.0,0.00019726,2]
[363779195,1748868660529,-420.0,0.00019726,2]
[363779196,1748868660538,-420.0,0.00019726,2]
[363779197,1748868660548,-420.0,0.00019726,2]
[363779198,1748868660558,-420.0,0.00019726,2]
[363779199,1748868660568,-420.0,0.00019726,2]
[363779200,1748868660577,-420.0,0.00019726,2]
[363779201,1748868660587,-420.0,0.00019726,2]
[363779202,1748868660597,-420.0,0.00019726,2]
[363779203,1748868660606,-420.0,0.00019726,2]
[363779204,1748868660616,-496.37708953,0.00019726,2]
[363779205,1748868660626,-420.0,0.00019726,2]
[363779206,1748868660635,-420.0,0.00019726,2]
[363779207,1748868660646,-420.0,0.00019726,2]
[363779208,1748868660655,-261.02,0.00019726,2]
[363779209,1748868660665,-420.0,0.00019726,2]
[363779210,1748868660675,-420.0,0.00019726,2]
[363779211,1748868660684,-420.0,0.00019726,2]
[363779212,1748868660693,-420.0,0.00019726,2]
[363779213,1748868660703,-488.38,0.00019726,2]
[363779214,1748868660712,-420.0,0.00019726,2]
[363779215,1748868660722,-420.0,0.00019726,2]
[363779216,1748868660731,-420.0,0.00019726,2]
[363779217,1748868660741,-420.0,0.00019726,2]
[363779218,1748868660750,-420.0,0.00019726,2]
[363779219,1748868660760,-420.0,0.00019726,2]
[363779220,1748868660769,-420.0,0.00019726,2]
[363779221,1748868660779,-420.0,0.00019726,2]
[363779222,1748868660788,-420.0,0.00019726,2]
[363779223,1748868660798,-420.0,0.00019726,2]
[363779224,1748868660807,-883.87,0.00019726,2]
[363779225,1748868660817,-420.0,0.00019726,2]
[363779226,1748868660830,-420.0,0.00019726,2]
[363779227,1748868660839,-420.0,0.00019726,2]
[363779228,1748868660849,-420.0,0.00019726,2]
[363779229,1748868660858,-420.0,0.00019726,2]
[363779230,1748868660868,-420.0,0.00019726,2]
[363779231,1748868660878,-420.0,0.00019726,2]
[363779232,1748868660888,-420.0,0.00019726,2]
[363779233,1748868660899,-435.96750397,0.00019726,2]
[363779234,1748868660910,-420.0,0.00019726,2]
[363779235,1748868660919,-420.0,0.00019726,2]
[363779236,1748868660929,-485.8,0.00019726,2]
[363779237,1748868660939,-420.0,0.00019726,2]
[363779238,1748868660949,-423.78,0.00019726,2]
[363779239,1748868660959,-420.0,0.00019726,2]
[363779240,1748868660968,-420.0,0.00019726,2]
[363779241,1748868660978,-420.0,0.00019726,2]
[363779242,1748868660988,-420.0,0.00019726,2]
[363779243,1748868661000,-420.0,0.00019726,2]
[363779244,1748868661009,-420.0,0.00019726,2]
[363779245,1748868661019,-420.0,0.00019726,2]
[363779246,1748868661029,-420.0,0.00019726,2]
[363779247,1748868661038,-420.0,0.00019726,2]
[363779248,1748868661048,-420.0,0.00019726,2]
[363779249,1748868661058,-420.0,0.00019726,2]
[363779250,1748868661068,-420.0,0.00019726,2]
[363779251,1748868661078,-420.0,0.00019726,2]
[363779252,1748868661087,-498.01,0.00019726,2]
[363779253,1748868661097,-1174.57,0.00019726,2]
[363779254,1748868661108,-420.0,0.00019726,2]
[363779255,1748868661118,-1170.95,0.00019726,2]
[363779256,1748868661128,-758.5,0.00019726,2]
[363779257,1748868661139,-340.97669088,0.00019726,2]
[363779258,1748868661149,-420.0,0.00019726,2]
[363779259,1748868661159,-420.0,0.00019726,2]
[363779260,1748868661169,-4562.65,0.00019726,2]
[363779261,1748868661178,-420.0,0.00019726,2]
[363779262,1748868661188,-1744.68,0.00019726,2]
[363779263,1748868661198,-1175.3,0.00019726,2]
[363779264,1748868661207,-9032.26,0.00019726,2]
[363779265,1748868661215,-420.0,0.00019726,2]
[363779266,1748868661225,-1114.81,0.00019726,2]
[363779267,1748868661234,-4177.71,0.00019726,2]
[363779268,1748868661244,-420.0,0.00019726,2]
[363779269,1748868661254,-551.63,0.00019726,2]
[363779270,1748868661264,-420.0,0.00019726,2]
[363779271,1748868661274,-996.0,0.00019726,2]
[363779272,1748868661284,-420.0,0.00019726,2]
[363779273,1748868661294,-504.81,0.00019726,2]
[363779274,1748868661305,-716.31,0.00019726,2]
[363779275,1748868661316,-420.0,0.00019726,2]
[363779276,1748868661326,-420.0,0.00019726,2]
[363779277,1748868661337,-385.3,0.00019726,2]
[363779278,1748868661347,-420.0,0.00019726,2]
[363779279,1748868661358,-420.0,0.00019726,2]
[363779280,1748868661369,-420.0,0.00019726,2]
[363779281,1748868661379,-420.0,0.00019726,2]
[363779282,1748868661390,-755.86,0.00019726,2]
[363779283,1748868661401,-929.45,0.00019726,2]
[363779284,1748868661410,-420.0,0.00019726,2]
[363779285,1748868661421,-420.0,0.00019726,2]
[363779286,1748868661431,-317.56,0.00019726,2]
[363779287,1748868661441,-420.0,0.00019726,2]
[363779288,1748868661450,-1041.38,0.00019726,2]
[363779289,1748868661461,-1475.64,0.00019726,2]
[363779290,1748868661471,-420.0,0.00019726,2]
[363779291,1748868661481,-420.0,0.00019726,2]
[363779292,1748868661491,-420.0,0.00019726,2]
[363779293,1748868661501,-420.0,0.00019726,2]
[363779294,1748868661511,-420.0,0.00019726,2]
[363779295,1748868661521,-420.0,0.00019726,2]
[363779296,1748868661530,-614.15,0.00019726,2]
[363779297,1748868661539,-420.0,0.00019726,2]
[363779298,1748868661549,-420.0,0.00019726,2]
[363779299,1748868661559,-266.87763992,0.00019726,2]
[363779300,1748868661569,-666.38,0.00019726,2]
[363779301,1748868661579,-420.0,0.00019726,2]
[363779302,1748868661588,-420.0,0.00019726,2]
[363779303,1748868661597,-420.0,0.00019726,2]
[363779304,1748868661607,-420.0,0.00019726,2]
[363779305,1748868661616,-768.88,0.00019726,2]
[363779306,1748868661626,-629.3,0.00019726,2]
[363779307,1748868661636,-420.0,0.00019726,2]
[363779308,1748868661649,-1774.49,0.00019726,2]
[363779309,1748868661659,-420.0,0.00019726,2]
[363779310,1748868661669,-420.0,0.00019726,2]
[363779311,1748868661679,-420.0,0.00019726,2]
[363779312,1748868661689,-420.0,0.00019726,2]
[363779313,1748868661700,-792.24,0.00019726,2]
[363779314,1748868661710,-420.0,0.00019726,2]
[363779315,1748868661720,-262.94564188,0.00019726,2]
[363779316,1748868661730,-420.0,0.00019726,2]
[363779317,1748868661740,-420.0,0.00019726,2]
[363779318,1748868661750,-520.88,0.00019726,2]
[363779319,1748868661760,-551.97,0.00019726,2]
[363779320,1748868661771,-420.0,0.00019726,2]
[363779321,1748868661782,-420.0,0.00019726,2]
[363779322,1748868661791,-420.0,0.00019726,2]
[363779323,1748868661802,-420.0,0.00019726,2]
[363779324,1748868661812,-420.0,0.00019726,2]
[363779325,1748868661826,-420.0,0.00019726,2]
[363779326,1748868661836,-420.0,0.00019726,2]
[363779327,1748868661846,-420.0,0.00019726,2]
[363779328,1748868661857,-429.37,0.00019726,2]
[363779329,1748868661867,-630.76,0.00019726,2]
[363779330,1748868661877,-420.0,0.00019726,2]
[363779331,1748868661890,-3392.49,0.00019726,2]
[363779332,1748868661902,-482.48,0.00019726,2]
[363779333,1748868661912,-283.26918007,0.00019726,2]
[363779334,1748868661923,-420.0,0.00019726,2]
[363779335,1748868661934,-420.0,0.00019726,2]
[363779336,1748868661944,-429.5,0.00019726,2]
[363779337,1748868661954,-420.0,0.00019726,2]
[363779338,1748868661964,-420.0,0.00019726,2]
[363779339,1748868661974,-420.0,0.00019726,2]
[363779340,1748868661985,-420.0,0.00019726,2]
[363779341,1748868661995,-580.65,0.00019726,2]
[363779342,1748868662005,-569.85590223,0.00019726,2]
[363779343,1748868662014,-420.0,0.00019726,2]
[363779344,1748868662024,-420.0,0.00019726,2]
[363779345,1748868662034,-790.0,0.00019726,2]
[363779346,1748868662044,-420.0,0.00019726,2]
[363779347,1748868662054,-468.55,0.00019726,2]
[363779348,1748868662064,-936.76,0.00019726,2]
[363779349,1748868662074,-1765.14,0.00019726,2]
[363779350,1748868662084,-420.0,0.00019726,2]
[363779351,1748868662094,-1401.04,0.00019726,2]
[363779352,1748868662103,-498.84,0.00019726,2]
[363779353,1748868662112,-392.054232,0.00019726,2]
[363779354,1748868662122,-492.3,0.00019726,2]
[363779355,1748868662132,-420.0,0.00019726,2]
[363779356,1748868662143,-420.0,0.00019726,2]
[363779357,1748868662152,-420.0,0.00019726,2]
[363779358,1748868662162,-420.0,0.00019726,2]
[363779359,1748868662172,-579.01,0.00019726,2]
[363779360,1748868662182,-420.0,0.00019726,2]
[363779361,1748868662192,-529.79871502,0.00019726,2]
[363779362,1748868662202,-2331.26,0.00019726,2]
[363779363,1748868662212,-573.08,0.00019726,2]
[363779364,1748868662221,-844.27,0.00019726,2]
[363779365,1748868662231,-1309.79,0.00019726,2]
[363779366,1748868662241,-420.0,0.00019726,2]
[363779367,1748868662251,-2934.36,0.00019726,2]
[363779368,1748868662261,-1763.08,0.00019726,2]
[363779369,1748868662271,-420.0,0.00019726,2]
[363779370,1748868662281,-420.0,0.00019726,2]
[363779371,1748868662292,-420.0,0.00019726,2]
[363779372,1748868662302,-2355.75,0.00019726,2]
[363779373,1748868662312,-420.0,0.00019726,2]
[363779374,1748868662321,-520.02,0.00019726,2]
[363779375,1748868662331,-420.0,0.00019726,2]
[363779376,1748868662341,-1326.49,0.00019726,2]
[363779377,1748868662351,-420.0,0.00019726,2]
[363779378,1748868662361,-420.0,0.00019726,2]
[363779379,1748868662371,-420.0,0.00019726,2]
[363779380,1748868662380,-420.0,0.00019726,2]
[363779381,1748868662391,-420.0,0.00019726,2]
[363779382,1748868662401,-1329.42,0.00019726,2]
[363779383,1748868662411,-420.0,0.00019726,2]
[363779384,1748868662421,-420.0,0.00019726,2]
[363779385,1748868662431,-420.0,0.00019726,2]
[363779386,1748868662441,-913.78,0.00019726,2]
[363779387,1748868662451,-196.41277909,0.00019726,2]
[363779388,1748868662460,-420.0,0.00019726,2]
[363779389,1748868662469,-420.0,0.00019726,2]
[363779390,1748868662478,-2903.51,0.00019726,2]
[363779391,1748868662487,-534.17,0.00019726,2]
[363779392,1748868662496,-675.23,0.00019726,2]
[363779393,1748868662505,-420.0,0.00019726,2]
[363779394,1748868662514,-420.0,0.00019726,2]
[363779395,1748868662523,-420.0,0.00019726,2]
[363779396,1748868662532,-1161.16,0.00019726,2]
[363779397,1748868662541,-693.48,0.00019726,2]
[363779398,1748868662550,-3113.02,0.00019726,2]
[363779399,1748868662559,-428.82,0.00019726,2]
[363779400,1748868662568,-173.96,0.00019726,2]
[363779401,1748868662578,-420.0,0.00019726,2]
[363779402,1748868662589,-581.6,0.00019726,2]
[363779403,1748868662600,-420.0,0.00019726,2]
[363779404,1748868662611,-448.42,0.00019726,2]
[363779405,1748868662619,-972.65,0.00019726,2]
[363779406,1748868662629,-593.57,0.00019726,2]
[363779407,1748868662641,-420.0,0.00019726,2]
[363779408,1748868662650,-420.0,0.00019726,2]
[363779409,1748868662659,-614.98,0.00019726,2]
[363779410,1748868662669,-420.0,0.00019726,2]
[363779411,1748868662678,-420.0,0.00019726,2]
[363779412,1748868662687,-444.66,0.00019726,2]
[363779413,1748868662696,-420.0,0.00019726,2]
[363779414,1748868662705,-659.87,0.00019726,2]
[363779415,1748868662713,-420.0,0.00019726,2]
[363779416,1748868662722,-420.0,0.00019726,2]
[363779417,1748868662733,-1440.83,0.00019726,2]
[363779418,1748868662741,-500.0,0.00019753,2]
[363779419,1748868662751,-500.0,0.00019753,2]
[363779420,1748868662916,-2110.0,0.00019753,2]
[363779421,1748868662925,-500.0,0.00019781,2]
[363779422,1748868662934,-500.0,0.00019781,2]
[363779423,1748868662944,-2110.0,0.00019781,2]
[363779424,1748868662954,-300.0,0.00019791,2]
[363779425,1748868662963,-700.0,0.000198,7]
[363779426,1748868662972,-263.89711962,0.00019807,2]
[363779427,1748868662981,-450.0,0.00019808,2]
[363779428,1748868662989,-248.41830653,0.00019808,2]
[363779429,1748868662996,-2110.0,0.00019808,2]
[363779430,1748868663004,-2255.10096463,0.00019809,2]
[363779431,1748868663011,-3135.746,0.00019809,2]
[363779432,1748868663020,-500.0,0.00019809,2]
[363779433,1748868663029,-500.0,0.00019809,2]
[363779434,1748868663037,-167.891,0.0001981,2]
[363779435,1748868663046,-1897.0,0.00019826,2]
[363779436,1748868663056,-300.0,0.00019828,2]
[363779437,1748868663067,-2110.0,0.00019836,2]
[363779438,1748868663077,-200.0,0.00019839,2]
[363779439,1748868663087,-200.0,0.0001984,2]
[363779440,1748868663097,-487.30933949,0.00019854,2]
[363779441,1748868663107,-2110.0,0.00019863,2]
[363779442,1748868663118,-420.0,0.00019863,2]
[363779443,1748868663128,-199.81168823,0.00019863,2]
[363779444,1748868663140,-1610.521803,0.00019863,2]
[363779445,1748868663150,-1784.984478,0.00019863,2]
[363779446,1748868663160,-420.0,0.00019863,2]
[363779447,1748868663172,-420.0,0.00019863,2]
[363779448,1748868663183,-420.0,0.00019863,2]
[363779449,1748868663193,-230.28,0.00019863,2]
[363779450,1748868663203,-420.0,0.00019863,2]
[363779451,1748868663214,-420.0,0.00019863,2]
[363779452,1748868663224,-420.0,0.00019863,2]
[363779453,1748868663235,-420.0,0.00019863,2]
[363779454,1748868663245,-507.96,0.00019863,2]
[363779455,1748868663256,-420.0,0.00019863,2]
[363779456,1748868663267,-403.03794017,0.00019863,2]
[363779457,1748868663278,-420.0,0.00019863,2]
[363779458,1748868663288,-420.0,0.00019863,2]
[363779459,1748868663298,-420.0,0.00019863,2]
[363779460,1748868663309,-420.0,0.00019863,2]
[363779461,1748868663320,-420.0,0.00019863,2]
[363779462,1748868663331,-420.0,0.00019863,2]
[363779463,1748868663342,-420.0,0.00019863,2]
[363779464,1748868663353,-492.51,0.00019863,2]
[363779465,1748868663364,-420.0,0.00019863,2]
[363779466,1748868663374,-420.0,0.00019863,2]
[363779467,1748868663384,-420.0,0.00019863,2]
[363779468,1748868663396,-420.0,0.00019863,2]
[363779469,1748868663408,-420.0,0.00019863,2]
[363779470,1748868663418,-420.0,0.00019863,2]
[363779471,1748868663428,-420.0,0.00019863,2]
[363779472,1748868663438,-420.0,0.00019863,2]
[363779473,1748868663448,-488.38,0.00019863,2]
[363779474,1748868663458,-420.0,0.00019863,2]
[363779475,1748868663469,-420.0,0.00019863,2]
[363779476,1748868663478,-420.0,0.00019863,2]
[363779477,1748868663489,-420.0,0.00019863,2]
[363779478,1748868663499,-420.0,0.00019863,2]
[363779479,1748868663508,-420.0,0.00019863,2]
[363779480,1748868663518,-420.0,0.00019863,2]
[363779481,1748868663528,-420.0,0.00019863,2]
[363779482,1748868663538,-420.0,0.00019863,2]
[363779483,1748868663548,-420.0,0.00019863,2]
[363779484,1748868663558,-883.87,0.00019863,2]
[363779485,1748868663568,-420.0,0.00019863,2]
[363779486,1748868663578,-420.0,0.00019863,2]
[363779487,1748868663587,-420.0,0.00019863,2]
[363779488,1748868663597,-420.0,0.00019863,2]
[363779489,1748868663606,-420.0,0.00019863,2]
[363779490,1748868663616,-420.0,0.00019863,2]
[363779491,1748868663625,-420.0,0.00019863,2]
[363779492,1748868663634,-432.24,0.00019863,2]
[363779493,1748868663646,-259.92,0.00019863,2]
[363779494,1748868663655,-449.26,0.00019863,2]
[363779495,1748868663665,-420.0,0.00019863,2]
[363779496,1748868663675,-423.78,0.00019863,2]
[363779497,1748868663684,-420.0,0.00019863,2]
[363779498,1748868663694,-420.0,0.00019863,2]
[363779499,1748868663703,-420.0,0.00019863,2]
[363779500,1748868663714,-420.0,0.00019863,2]
[363779501,1748868663723,-420.0,0.00019863,2]
[363779502,1748868663732,-311.73333673,0.00019863,2]
[363779503,1748868663742,-420.0,0.00019863,2]
[363779504,1748868663751,-420.0,0.00019863,2]
[363779505,1748868663760,-420.0,0.00019863,2]
[363779506,1748868663770,-420.0,0.00019863,2]
[363779507,1748868663782,-420.0,0.00019863,2]
[363779508,1748868663791,-420.0,0.00019863,2]
[363779509,1748868663800,-528.58780051,0.00019863,2]
[363779510,1748868663809,-1174.57,0.00019863,2]
[363779511,1748868663822,-420.0,0.00019863,2]
[363779512,1748868663832,-1170.95,0.00019863,2]
[363779513,1748868663842,-758.5,0.00019863,2]
[363779514,1748868663852,-420.0,0.00019863,2]
[363779515,1748868663862,-420.0,0.00019863,2]
[363779516,1748868663872,-4562.65,0.00019863,2]
[363779517,1748868663882,-420.0,0.00019863,2]
[363779518,1748868663893,-1744.68,0.00019863,2]
[363779519,1748868663905,-1175.3,0.00019863,2]
[363779520,1748868663915,-9032.26,0.00019863,2]
[363779521,1748868663925,-420.0,0.00019863,2]
[363779522,1748868663936,-1114.81,0.00019863,2]
[363779523,1748868663945,-4177.71,0.00019863,2]
[363779524,1748868663955,-420.0,0.00019863,2]
[363779525,1748868663965,-551.63,0.00019863,2]
[363779526,1748868663974,-420.0,0.00019863,2]
[363779527,1748868663985,-996.0,0.00019863,2]
[363779528,1748868663996,-420.0,0.00019863,2]
[363779529,1748868664006,-504.81,0.00019863,2]
[363779530,1748868664016,-716.31,0.00019863,2]
[363779531,1748868664026,-420.0,0.00019863,2]
[363779532,1748868664036,-420.0,0.00019863,2]
[363779533,1748868664046,-420.0,0.00019863,2]
[363779534,1748868664056,-420.0,0.00019863,2]
[363779535,1748868664066,-420.0,0.00019863,2]
[363779536,1748868664076,-420.0,0.00019863,2]
[363779537,1748868664086,-755.86,0.00019863,2]
[363779538,1748868664096,-929.45,0.00019863,2]
[363779539,1748868664106,-420.0,0.00019863,2]
[363779540,1748868664117,-420.0,0.00019863,2]
[363779541,1748868664126,-420.0,0.00019863,2]
[363779542,1748868664136,-1041.38,0.00019863,2]
[363779543,1748868664149,-1475.64,0.00019863,2]
[363779544,1748868664159,-364.48,0.00019863,2]
[363779545,1748868664169,-420.0,0.00019863,2]
[363779546,1748868664179,-229.58,0.00019863,2]
[363779547,1748868664189,-420.0,0.00019863,2]
[363779548,1748868664199,-420.0,0.00019863,2]
[363779549,1748868664209,-420.0,0.00019863,2]
[363779550,1748868664219,-614.15,0.00019863,2]
[363779551,1748868664228,-219.74588097,0.00019863,2]
[363779552,1748868664238,-420.0,0.00019863,2]
[363779553,1748868664248,-666.38,0.00019863,2]
[363779554,1748868664258,-420.0,0.00019863,2]
[363779555,1748868664268,-420.0,0.00019863,2]
[363779556,1748868664278,-420.0,0.00019863,2]
[363779557,1748868664288,-420.0,0.00019863,2]
[363779558,1748868664298,-768.88,0.00019863,2]
[363779559,1748868664308,-629.3,0.00019863,2]
[363779560,1748868664319,-420.0,0.00019863,2]
[363779561,1748868664330,-1774.49,0.00019863,2]
[363779562,1748868664339,-420.0,0.00019863,2]
[363779563,1748868664349,-420.0,0.00019863,2]
[363779564,1748868664359,-420.0,0.00019863,2]
[363779565,1748868664369,-420.0,0.00019863,2]
[363779566,1748868664378,-792.24,0.00019863,2]
[363779567,1748868664390,-420.0,0.00019863,2]
[363779568,1748868664400,-420.0,0.00019863,2]
[363779569,1748868664410,-420.0,0.00019863,2]
[363779570,1748868664419,-520.88,0.00019863,2]
[363779571,1748868664429,-551.97,0.00019863,2]
[363779572,1748868664439,-420.0,0.00019863,2]
[363779573,1748868664449,-420.0,0.00019863,2]
[363779574,1748868664459,-420.0,0.00019863,2]
[363779575,1748868664469,-420.0,0.00019863,2]
[363779576,1748868664482,-479.74,0.00019863,2]
[363779577,1748868664492,-420.0,0.00019863,2]
[363779578,1748868664502,-420.0,0.00019863,2]
[363779579,1748868664511,-280.44224325,0.00019863,2]
[363779580,1748868664521,-630.76,0.00019863,2]
[363779581,1748868664531,-556.88563026,0.00019863,2]
[363779582,1748868664540,-3392.49,0.00019863,2]
[363779583,1748868664550,-482.48,0.00019863,2]
[363779584,1748868664560,-420.0,0.00019863,2]
[363779585,1748868664569,-420.0,0.00019863,2]